[Event "Titled Tuesday Blitz November 15 Early 2022"]
[White "Ter-Sahakyan, Samvel"]
[Black "Chernomordik, Pavel"]
[WhiteFideId "13302531"]
[BlackFideId "2804530"]
[WhiteElo "2584"]
[BlackElo "2192"]
[Result "1-0"]
[Round "01"]
[TimeControl "180+1"]
[Date "2022.11.16"]
[WhiteClock "0:00:41"]
[BlackClock "0:00:03"]

1. d4 {[%clk 0:02:59]}  g6 {[%clk 0:02:59]} 2. e4 {[%clk 0:02:57]}  Bg7 {[%clk 0:02:58]} 3. Nc3 {[%clk 0:02:57]}  d6 {[%clk 0:02:58]} 4. Be3 {[%clk 0:02:54]}  a6 {[%clk 0:02:57]} 5. h4 {[%clk 0:02:52]}  h6 {[%clk 0:02:56]} 6. g4 {[%clk 0:02:46]}  Nf6 {[%clk 0:02:44]} 7. Be2 {[%clk 0:02:26]}  b5 {[%clk 0:02:28]} 8. Bf3 {[%clk 0:02:26]}  c6 {[%clk 0:02:14]} 9. a3 {[%clk 0:02:06]}  Nfd7 {[%clk 0:02:06]} 10. Nge2 {[%clk 0:01:55]}  Nb6 {[%clk 0:01:55]} 11. b3 {[%clk 0:01:55]}  N8d7 {[%clk 0:01:50]} 12. Qd2 {[%clk 0:01:40]}  Qc7 {[%clk 0:01:46]} 13. Rd1 {[%clk 0:01:15]}  Bb7 {[%clk 0:01:44]} 14. Bg2 {[%clk 0:01:12]}  O-O-O {[%clk 0:01:29]} 15. d5 {[%clk 0:01:06]}  c5 {[%clk 0:01:19]} 16. Ng3 {[%clk 0:01:04]}  Ne5 {[%clk 0:01:15]} 17. f3 {[%clk 0:01:01]}  Nec4 {[%clk 0:00:59]} 18. bxc4 {[%clk 0:01:00]}  Nxc4 {[%clk 0:00:59]} 19. Qd3 {[%clk 0:00:59]}  Nb2 {[%clk 0:00:38]} 20. Qd2 {[%clk 0:00:59]}  Nxd1 {[%clk 0:00:35]} 21. Nxd1 {[%clk 0:00:58]}  e6 {[%clk 0:00:35]} 22. O-O {[%clk 0:00:52]}  exd5 {[%clk 0:00:35]} 23. exd5 {[%clk 0:00:53]}  Qe7 {[%clk 0:00:34]} 24. h5 {[%clk 0:00:52]}  Rde8 {[%clk 0:00:28]} 25. Bf2 {[%clk 0:00:48]}  Qf6 {[%clk 0:00:18]} 26. Ne4 {[%clk 0:00:47]}  Qe7 {[%clk 0:00:16]} 27. c4 {[%clk 0:00:45]}  f5 {[%clk 0:00:12]} 28. Ng3 {[%clk 0:00:44]}  fxg4 {[%clk 0:00:09]} 29. fxg4 {[%clk 0:00:44]}  Be5 {[%clk 0:00:04]} 30. hxg6 {[%clk 0:00:41]}  Ref8 {[%clk 0:00:03]} 31. Nf5 {[%clk 0:00:41]} 1-0


[Site "https://www.chess.com"]

[Event "Titled Tuesday Blitz November 15 Early 2022"]
[White "Thiel, Thomas"]
[Black "Migot, Tangi"]
[WhiteFideId "4615964"]
[BlackFideId "662445"]
[WhiteElo "2218"]
[BlackElo "2579"]
[Result "0-1"]
[Round "01"]
[TimeControl "180+1"]
[Date "2022.11.16"]
[WhiteClock "0:00:36"]
[BlackClock "0:00:52"]

1. e4 {[%clk 0:03:00]}  e5 {[%clk 0:02:56]} 2. Nf3 {[%clk 0:02:59]}  d6 {[%clk 0:02:56]} 3. d4 {[%clk 0:02:58]}  exd4 {[%clk 0:02:57]} 4. Nxd4 {[%clk 0:02:57]}  Nf6 {[%clk 0:02:57]} 5. Nc3 {[%clk 0:02:56]}  Be7 {[%clk 0:02:58]} 6. g3 {[%clk 0:02:56]}  O-O {[%clk 0:02:57]} 7. Bg2 {[%clk 0:02:55]}  c6 {[%clk 0:02:58]} 8. O-O {[%clk 0:02:53]}  Re8 {[%clk 0:02:57]} 9. Re1 {[%clk 0:02:52]}  Bf8 {[%clk 0:02:58]} 10. h3 {[%clk 0:02:51]}  Nbd7 {[%clk 0:02:58]} 11. Nf5 {[%clk 0:02:46]}  Nc5 {[%clk 0:02:54]} 12. Qf3 {[%clk 0:02:32]}  d5 {[%clk 0:02:48]} 13. e5 {[%clk 0:02:14]}  Nfe4 {[%clk 0:02:46]} 14. Qf4 {[%clk 0:01:14]}  Ne6 {[%clk 0:02:41]} 15. Qg4 {[%clk 0:01:07]}  Kh8 {[%clk 0:02:31]} 16. Nxe4 {[%clk 0:01:06]}  dxe4 {[%clk 0:02:32]} 17. Bxe4 {[%clk 0:01:05]}  g6 {[%clk 0:02:32]} 18. Nh6 {[%clk 0:01:04]}  Bxh6 {[%clk 0:02:14]} 19. Bxh6 {[%clk 0:01:05]}  Ng7 {[%clk 0:01:56]} 20. Qf4 {[%clk 0:01:03]}  Qe7 {[%clk 0:01:48]} 21. Bg2 {[%clk 0:01:00]}  Bf5 {[%clk 0:01:44]} 22. Bg5 {[%clk 0:01:00]}  Qe6 {[%clk 0:01:39]} 23. Bf6 {[%clk 0:01:00]}  Kg8 {[%clk 0:01:32]} 24. Qh6 {[%clk 0:00:59]}  Nh5 {[%clk 0:01:32]} 25. g4 {[%clk 0:00:59]}  Bxg4 {[%clk 0:01:16]} 26. hxg4 {[%clk 0:00:54]}  Nxf6 {[%clk 0:01:13]} 27. exf6 {[%clk 0:00:51]}  Qxf6 {[%clk 0:01:14]} 28. g5 {[%clk 0:00:45]}  Qxb2 {[%clk 0:01:11]} 29. Rab1 {[%clk 0:00:38]}  Qxa2 {[%clk 0:00:56]} 30. Re7 {[%clk 0:00:36]}  Qxb1+ {[%clk 0:00:52]} 0-1


[Site "https://www.chess.com"]

[Event "Titled Tuesday Blitz November 15 Early 2022"]
[White "Tregubov, Pavel V."]
[Black "Matveeva, Olga"]
[WhiteFideId "4115341"]
[BlackFideId "24107018"]
[WhiteElo "2448"]
[BlackElo "2055"]
[Result "0-1"]
[Round "01"]
[TimeControl "180+1"]
[Date "2022.11.16"]
[WhiteClock "0:00:06"]
[BlackClock "0:00:48"]

1. e4 {[%clk 0:03:00]}  e6 {[%clk 0:02:59]} 2. d4 {[%clk 0:02:58]}  d5 {[%clk 0:03:00]} 3. exd5 {[%clk 0:02:59]}  exd5 {[%clk 0:03:00]} 4. Nf3 {[%clk 0:03:00]}  Nf6 {[%clk 0:03:00]} 5. Bd3 {[%clk 0:02:59]}  c5 {[%clk 0:03:01]} 6. O-O {[%clk 0:02:58]}  c4 {[%clk 0:03:01]} 7. Re1+ {[%clk 0:02:58]}  Be7 {[%clk 0:03:01]} 8. Bf1 {[%clk 0:02:58]}  O-O {[%clk 0:03:01]} 9. b3 {[%clk 0:02:59]}  cxb3 {[%clk 0:03:01]} 10. axb3 {[%clk 0:02:59]}  Bg4 {[%clk 0:02:59]} 11. h3 {[%clk 0:02:57]}  Bh5 {[%clk 0:02:57]} 12. g4 {[%clk 0:02:46]}  Bg6 {[%clk 0:02:56]} 13. Ne5 {[%clk 0:02:46]}  Nc6 {[%clk 0:02:53]} 14. Nxg6 {[%clk 0:02:39]}  hxg6 {[%clk 0:02:45]} 15. Bg2 {[%clk 0:02:40]}  Re8 {[%clk 0:02:39]} 16. Be3 {[%clk 0:02:15]}  Bd6 {[%clk 0:02:23]} 17. Nd2 {[%clk 0:02:08]}  Rc8 {[%clk 0:02:20]} 18. c3 {[%clk 0:02:02]}  Bb8 {[%clk 0:02:18]} 19. Nf1 {[%clk 0:01:52]}  Ne4 {[%clk 0:02:13]} 20. Qd3 {[%clk 0:01:45]}  Qd6 {[%clk 0:01:59]} 21. Rac1 {[%clk 0:01:43]}  a6 {[%clk 0:01:45]} 22. c4 {[%clk 0:01:23]}  Nb4 {[%clk 0:01:39]} 23. Qb1 {[%clk 0:01:22]}  f5 {[%clk 0:01:24]} 24. gxf5 {[%clk 0:00:59]}  gxf5 {[%clk 0:01:25]} 25. f3 {[%clk 0:00:58]}  Ng3 {[%clk 0:01:22]} 26. Nxg3 {[%clk 0:00:55]}  Qxg3 {[%clk 0:01:23]} 27. Qxf5 {[%clk 0:00:55]}  Rf8 {[%clk 0:01:04]} 28. Qg4 {[%clk 0:00:52]}  Qh2+ {[%clk 0:01:02]} 29. Kf1 {[%clk 0:00:52]}  Nd3 {[%clk 0:01:02]} 30. Bh6 {[%clk 0:00:38]}  Rc7 {[%clk 0:01:01]} 31. cxd5 {[%clk 0:00:35]}  Nxc1 {[%clk 0:00:59]} 32. d6 {[%clk 0:00:33]}  Rcf7 {[%clk 0:00:58]} 33. Rxc1 {[%clk 0:00:24]}  Bxd6 {[%clk 0:00:58]} 34. Re1 {[%clk 0:00:13]}  Qg3 {[%clk 0:00:54]} 35. Qxg3 {[%clk 0:00:12]}  Bxg3 {[%clk 0:00:55]} 36. Bg5 {[%clk 0:00:08]}  Bxe1 {[%clk 0:00:54]} 37. Kxe1 {[%clk 0:00:09]}  Rxf3 {[%clk 0:00:52]} 38. Bxf3 {[%clk 0:00:08]}  Rxf3 {[%clk 0:00:53]} 39. d5 {[%clk 0:00:06]}  Rxb3 {[%clk 0:00:50]} 40. Ke2 {[%clk 0:00:06]}  Kf7 {[%clk 0:00:48]} 0-1


[Site "https://www.chess.com"]

[Event "Titled Tuesday Blitz November 15 Early 2022"]
[White "Trost, Edvin"]
[Black "Rose, Felix"]
[WhiteFideId "1729519"]
[BlackFideId "5105722"]
[WhiteElo "2247"]
[BlackElo "2039"]
[Result "1-0"]
[Round "01"]
[TimeControl "180+1"]
[Date "2022.11.16"]
[WhiteClock "0:01:19"]
[BlackClock "0:00:04"]

1. e4 {[%clk 0:02:25]}  c5 {[%clk 0:02:58]} 2. b3 {[%clk 0:02:21]}  g6 {[%clk 0:02:56]} 3. Bb2 {[%clk 0:02:21]}  Nf6 {[%clk 0:02:55]} 4. Bc4 {[%clk 0:02:18]}  Bg7 {[%clk 0:02:46]} 5. e5 {[%clk 0:02:12]}  Ne4 {[%clk 0:02:32]} 6. Qf3 {[%clk 0:02:05]}  Ng5 {[%clk 0:02:25]} 7. Qe3 {[%clk 0:01:59]}  Ne6 {[%clk 0:02:00]} 8. Bxe6 {[%clk 0:01:58]}  fxe6 {[%clk 0:01:58]} 9. Qxc5 {[%clk 0:01:58]}  O-O {[%clk 0:01:58]} 10. Nf3 {[%clk 0:01:58]}  Nc6 {[%clk 0:01:56]} 11. O-O {[%clk 0:01:56]}  d6 {[%clk 0:01:52]} 12. Qe3 {[%clk 0:01:56]}  Qa5 {[%clk 0:01:47]} 13. d4 {[%clk 0:01:54]}  dxe5 {[%clk 0:01:40]} 14. dxe5 {[%clk 0:01:50]}  Rf5 {[%clk 0:01:39]} 15. Re1 {[%clk 0:01:49]}  Bd7 {[%clk 0:01:35]} 16. Nbd2 {[%clk 0:01:49]}  Raf8 {[%clk 0:01:33]} 17. a4 {[%clk 0:01:34]}  Qc7 {[%clk 0:01:32]} 18. Rad1 {[%clk 0:01:31]}  b6 {[%clk 0:01:27]} 19. Nf1 {[%clk 0:01:26]}  Nb4 {[%clk 0:01:11]} 20. Qd2 {[%clk 0:01:23]}  Nd5 {[%clk 0:00:43]} 21. Ne3 {[%clk 0:01:20]}  Rxf3 {[%clk 0:00:39]} 22. Nxd5 {[%clk 0:01:19]}  Qc5 {[%clk 0:00:29]} 23. gxf3 {[%clk 0:01:16]}  exd5 {[%clk 0:00:25]} 24. Qxd5+ {[%clk 0:01:16]}  Qxd5 {[%clk 0:00:24]} 25. Rxd5 {[%clk 0:01:17]}  Bc6 {[%clk 0:00:25]} 26. Rd3 {[%clk 0:01:18]}  Bxf3 {[%clk 0:00:23]} 27. Rd7 {[%clk 0:01:17]}  Rf5 {[%clk 0:00:20]} 28. Rd8+ {[%clk 0:01:17]}  Bf8 {[%clk 0:00:17]} 29. Re3 {[%clk 0:01:17]}  Rg5+ {[%clk 0:00:17]} 30. Kf1 {[%clk 0:01:18]}  Bg2+ {[%clk 0:00:13]} 31. Ke1 {[%clk 0:01:18]}  Bd5 {[%clk 0:00:11]} 32. Ba3 {[%clk 0:01:18]}  Rg1+ {[%clk 0:00:07]} 33. Kd2 {[%clk 0:01:18]}  Be6 {[%clk 0:00:03]} 34. Bxe7 {[%clk 0:01:18]}  Kf7 {[%clk 0:00:04]} 35. Bxf8 {[%clk 0:01:19]} 1-0


[Site "https://www.chess.com"]

[Event "Titled Tuesday Blitz November 15 Early 2022"]
[White "Valle Maytin, Luis Enrique"]
[Black "Leiva, Gianmarco"]
[WhiteFideId "3503666"]
[BlackFideId "3804399"]
[WhiteElo "2225"]
[BlackElo "2286"]
[Result "1-0"]
[Round "01"]
[TimeControl "180+1"]
[Date "2022.11.16"]
[WhiteClock "0:00:10"]
[BlackClock "0:00:08"]

1. e4 {[%clk 0:02:56]}  c5 {[%clk 0:02:53]} 2. Nf3 {[%clk 0:02:55]}  d6 {[%clk 0:02:54]} 3. d4 {[%clk 0:02:56]}  cxd4 {[%clk 0:02:54]} 4. Nxd4 {[%clk 0:02:57]}  Nf6 {[%clk 0:02:54]} 5. Nc3 {[%clk 0:02:53]}  a6 {[%clk 0:02:54]} 6. Bg5 {[%clk 0:02:50]}  e6 {[%clk 0:02:54]} 7. f4 {[%clk 0:02:48]}  Be7 {[%clk 0:02:50]} 8. Qd2 {[%clk 0:02:47]}  h6 {[%clk 0:02:49]} 9. Bxf6 {[%clk 0:02:39]}  Bxf6 {[%clk 0:02:50]} 10. O-O-O {[%clk 0:02:39]}  Bd7 {[%clk 0:02:49]} 11. Be2 {[%clk 0:02:36]}  Nc6 {[%clk 0:02:46]} 12. Nb3 {[%clk 0:02:15]}  Be7 {[%clk 0:02:46]} 13. Bf3 {[%clk 0:02:14]}  Qc7 {[%clk 0:02:40]} 14. Kb1 {[%clk 0:02:08]}  b5 {[%clk 0:02:24]} 15. g4 {[%clk 0:01:52]}  g5 {[%clk 0:02:23]} 16. f5 {[%clk 0:01:36]}  Ne5 {[%clk 0:02:22]} 17. Bg2 {[%clk 0:01:32]}  Nc4 {[%clk 0:02:08]} 18. Qd4 {[%clk 0:01:20]}  Ne5 {[%clk 0:02:08]} 19. Rhf1 {[%clk 0:01:15]}  h5 {[%clk 0:01:42]} 20. h3 {[%clk 0:01:02]}  hxg4 {[%clk 0:01:41]} 21. hxg4 {[%clk 0:01:01]}  Rh2 {[%clk 0:01:41]} 22. Bf3 {[%clk 0:00:57]}  O-O-O {[%clk 0:01:34]} 23. Be2 {[%clk 0:00:44]}  Kb8 {[%clk 0:01:32]} 24. Qe3 {[%clk 0:00:29]}  b4 {[%clk 0:01:26]} 25. Rd4 {[%clk 0:00:17]}  bxc3 {[%clk 0:01:14]} 26. Rb4+ {[%clk 0:00:16]}  Ka8 {[%clk 0:01:14]} 27. Bxa6 {[%clk 0:00:16]}  cxb2 {[%clk 0:01:07]} 28. Bb7+ {[%clk 0:00:15]}  Qxb7 {[%clk 0:00:55]} 29. Rxb7 {[%clk 0:00:15]}  Kxb7 {[%clk 0:00:55]} 30. Na5+ {[%clk 0:00:15]}  Ka6 {[%clk 0:00:55]} 31. Qa3 {[%clk 0:00:15]}  Kb6 {[%clk 0:00:43]} 32. Qb4+ {[%clk 0:00:15]}  Ka6 {[%clk 0:00:28]} 33. Nb3 {[%clk 0:00:13]}  Rc8 {[%clk 0:00:18]} 34. Qa5+ {[%clk 0:00:12]}  Kb7 {[%clk 0:00:18]} 35. Qb4+ {[%clk 0:00:11]}  Kc7 {[%clk 0:00:14]} 36. Qa5+ {[%clk 0:00:09]}  Kb7 {[%clk 0:00:12]} 37. Qb4+ {[%clk 0:00:10]}  Bb5 {[%clk 0:00:11]} 38. Qxb5+ {[%clk 0:00:09]}  Kc7 {[%clk 0:00:12]} 39. Qa5+ {[%clk 0:00:09]}  Kd7 {[%clk 0:00:12]} 40. Qa4+ {[%clk 0:00:09]}  Kd8 {[%clk 0:00:12]} 41. Nd4 {[%clk 0:00:10]}  Nc4 {[%clk 0:00:10]} 42. fxe6 {[%clk 0:00:10]}  Nd2+ {[%clk 0:00:09]} 43. Kxb2 {[%clk 0:00:10]}  Nxf1 {[%clk 0:00:08]} 44. Qd7# {[%clk 0:00:10]} 1-0


[Site "https://www.chess.com"]

[Event "Titled Tuesday Blitz November 15 Early 2022"]
[White "Vlassov, Nikolai"]
[Black "Nissinen, Niilo Man"]
[WhiteFideId "4103360"]
[BlackFideId "30950767"]
[WhiteElo "2324"]
[BlackElo "1896"]
[Result "1-0"]
[Round "01"]
[TimeControl "180+1"]
[Date "2022.11.16"]
[WhiteClock "0:01:37"]
[BlackClock "0:00:01"]

1. e4 {[%clk 0:02:26]}  c5 {[%clk 0:02:56]} 2. c3 {[%clk 0:02:25]}  Nf6 {[%clk 0:02:54]} 3. e5 {[%clk 0:02:25]}  Nd5 {[%clk 0:02:55]} 4. d4 {[%clk 0:02:25]}  cxd4 {[%clk 0:02:55]} 5. cxd4 {[%clk 0:02:25]}  e6 {[%clk 0:02:54]} 6. Nc3 {[%clk 0:02:22]}  d6 {[%clk 0:02:54]} 7. f4 {[%clk 0:02:21]}  Nxc3 {[%clk 0:02:47]} 8. bxc3 {[%clk 0:02:21]}  dxe5 {[%clk 0:02:48]} 9. fxe5 {[%clk 0:02:20]}  Be7 {[%clk 0:02:47]} 10. Nf3 {[%clk 0:02:20]}  b6 {[%clk 0:02:45]} 11. Bd3 {[%clk 0:02:19]}  Bb7 {[%clk 0:02:44]} 12. O-O {[%clk 0:02:16]}  h6 {[%clk 0:02:42]} 13. Qe2 {[%clk 0:02:14]}  Qc7 {[%clk 0:02:38]} 14. Bd2 {[%clk 0:02:14]}  Nd7 {[%clk 0:02:34]} 15. Rf2 {[%clk 0:02:13]}  O-O {[%clk 0:02:33]} 16. Raf1 {[%clk 0:02:12]}  Rad8 {[%clk 0:01:47]} 17. Bb1 {[%clk 0:02:11]}  h5 {[%clk 0:01:30]} 18. Ng5 {[%clk 0:02:01]}  Bxg5 {[%clk 0:01:10]} 19. Bxg5 {[%clk 0:02:00]}  g6 {[%clk 0:01:01]} 20. Bxd8 {[%clk 0:01:58]}  Qxd8 {[%clk 0:01:02]} 21. Qe3 {[%clk 0:01:51]}  Kg7 {[%clk 0:00:47]} 22. Rf6 {[%clk 0:01:50]}  Ba6 {[%clk 0:00:04]} 23. Qg5 {[%clk 0:01:39]}  Kh8 {[%clk 0:00:02]} 24. Qh6+ {[%clk 0:01:38]}  Kg8 {[%clk 0:00:01]} 25. Bxg6 {[%clk 0:01:38]}  Nxf6 {[%clk 0:00:01]} 26. exf6 {[%clk 0:01:37]}  fxg6 {[%clk 0:00:01]} 27. Qg7# {[%clk 0:01:37]} 1-0


[Site "https://www.chess.com"]

[Event "Titled Tuesday Blitz November 15 Early 2022"]
[White "Vokhidov, Shamsiddin"]
[Black "Storey, Charles H"]
[WhiteFideId "14204223"]
[BlackFideId "406686"]
[WhiteElo "2910"]
[BlackElo "2488"]
[Result "1-0"]
[Round "01"]
[TimeControl "180+1"]
[Date "2022.11.16"]
[WhiteClock "0:02:42"]
[BlackClock "0:00:02"]

1. e4 {[%clk 0:03:00]}  g6 {[%clk 0:02:53]} 2. d4 {[%clk 0:03:00]}  Bg7 {[%clk 0:02:52]} 3. Nf3 {[%clk 0:03:00]}  c5 {[%clk 0:02:52]} 4. dxc5 {[%clk 0:02:59]}  Qa5+ {[%clk 0:02:51]} 5. c3 {[%clk 0:03:00]}  Qxc5 {[%clk 0:02:51]} 6. Na3 {[%clk 0:03:00]}  Nf6 {[%clk 0:02:45]} 7. e5 {[%clk 0:03:00]}  Ng4 {[%clk 0:02:41]} 8. Qd4 {[%clk 0:03:00]}  Qxd4 {[%clk 0:02:35]} 9. cxd4 {[%clk 0:03:01]}  b6 {[%clk 0:02:20]} 10. h3 {[%clk 0:02:57]}  Nh6 {[%clk 0:02:19]} 11. Nb5 {[%clk 0:02:57]}  Na6 {[%clk 0:02:16]} 12. Be2 {[%clk 0:02:55]}  Bb7 {[%clk 0:02:15]} 13. O-O {[%clk 0:02:55]}  O-O {[%clk 0:02:07]} 14. Bg5 {[%clk 0:02:53]}  f6 {[%clk 0:02:03]} 15. exf6 {[%clk 0:02:52]}  exf6 {[%clk 0:02:03]} 16. Bxh6 {[%clk 0:02:52]}  Bxh6 {[%clk 0:02:03]} 17. Nd6 {[%clk 0:02:53]}  Bxf3 {[%clk 0:01:52]} 18. Bxf3 {[%clk 0:02:53]}  Rad8 {[%clk 0:01:31]} 19. Rfe1 {[%clk 0:02:52]}  Bf4 {[%clk 0:01:24]} 20. Bd5+ {[%clk 0:02:49]}  Kh8 {[%clk 0:00:55]} 21. Nf7+ {[%clk 0:02:49]}  Rxf7 {[%clk 0:00:55]} 22. Bxf7 {[%clk 0:02:50]}  Nc7 {[%clk 0:00:44]} 23. g3 {[%clk 0:02:49]}  Bd6 {[%clk 0:00:42]} 24. Rac1 {[%clk 0:02:48]}  Kg7 {[%clk 0:00:40]} 25. Bb3 {[%clk 0:02:45]}  Nb5 {[%clk 0:00:20]} 26. Rc4 {[%clk 0:02:45]}  Bf8 {[%clk 0:00:18]} 27. Rec1 {[%clk 0:02:43]}  Nd6 {[%clk 0:00:18]} 28. Rc7 {[%clk 0:02:43]}  a5 {[%clk 0:00:17]} 29. Be6 {[%clk 0:02:43]}  Nb5 {[%clk 0:00:13]} 30. R1c4 {[%clk 0:02:42]}  Nd6 {[%clk 0:00:05]} 31. R4c6 {[%clk 0:02:41]}  Nb5 {[%clk 0:00:05]} 32. Rxd7+ {[%clk 0:02:41]}  Rxd7 {[%clk 0:00:05]} 33. Bxd7 {[%clk 0:02:42]}  Nxd4 {[%clk 0:00:05]} 34. Rxb6 {[%clk 0:02:43]}  Bb4 {[%clk 0:00:02]} 35. a3 {[%clk 0:02:42]} 1-0


[Site "https://www.chess.com"]

[Event "Titled Tuesday Blitz November 15 Early 2022"]
[White "Willow, Jonah B"]
[Black "Dixit, Nikhil"]
[WhiteFideId "438804"]
[BlackFideId "5059534"]
[WhiteElo "2300"]
[BlackElo "2207"]
[Result "1-0"]
[Round "01"]
[TimeControl "180+1"]
[Date "2022.11.16"]
[WhiteClock "0:00:07"]
[BlackClock "0:00:03"]

1. e4 {[%clk 0:03:00]}  e6 {[%clk 0:02:46]} 2. d4 {[%clk 0:02:59]}  d5 {[%clk 0:02:45]} 3. Nd2 {[%clk 0:02:59]}  c5 {[%clk 0:02:42]} 4. Ngf3 {[%clk 0:02:57]}  Nc6 {[%clk 0:02:38]} 5. exd5 {[%clk 0:02:55]}  exd5 {[%clk 0:02:35]} 6. Bb5 {[%clk 0:02:54]}  Nf6 {[%clk 0:02:29]} 7. O-O {[%clk 0:02:45]}  Be7 {[%clk 0:02:26]} 8. dxc5 {[%clk 0:02:42]}  O-O {[%clk 0:02:26]} 9. Nb3 {[%clk 0:02:43]}  a6 {[%clk 0:02:24]} 10. Be2 {[%clk 0:02:42]}  Bf5 {[%clk 0:02:22]} 11. c3 {[%clk 0:02:36]}  Ne4 {[%clk 0:02:20]} 12. Nfd4 {[%clk 0:02:34]}  Bg6 {[%clk 0:02:20]} 13. Be3 {[%clk 0:02:32]}  Qc7 {[%clk 0:02:18]} 14. Nxc6 {[%clk 0:02:19]}  bxc6 {[%clk 0:02:16]} 15. f3 {[%clk 0:02:14]}  Nf6 {[%clk 0:02:13]} 16. Bd3 {[%clk 0:02:07]}  a5 {[%clk 0:02:11]} 17. Bxg6 {[%clk 0:01:58]}  hxg6 {[%clk 0:02:11]} 18. Qd4 {[%clk 0:01:56]}  a4 {[%clk 0:02:08]} 19. Nc1 {[%clk 0:01:54]}  Nd7 {[%clk 0:02:04]} 20. Nd3 {[%clk 0:01:54]}  Bf6 {[%clk 0:02:03]} 21. Qg4 {[%clk 0:01:23]}  a3 {[%clk 0:01:58]} 22. Bd4 {[%clk 0:01:16]}  axb2 {[%clk 0:01:57]} 23. Nxb2 {[%clk 0:01:17]}  Ne5 {[%clk 0:01:56]} 24. Qg3 {[%clk 0:01:16]}  Qb7 {[%clk 0:01:42]} 25. Rfb1 {[%clk 0:01:02]}  Nd7 {[%clk 0:01:42]} 26. Nd3 {[%clk 0:00:57]}  Qa6 {[%clk 0:01:40]} 27. Nb4 {[%clk 0:00:54]}  Qa4 {[%clk 0:01:37]} 28. Bxf6 {[%clk 0:00:33]}  Nxf6 {[%clk 0:01:35]} 29. Qd6 {[%clk 0:00:33]}  Rfc8 {[%clk 0:01:31]} 30. a3 {[%clk 0:00:30]}  Ne8 {[%clk 0:01:13]} 31. Qf4 {[%clk 0:00:30]}  Nc7 {[%clk 0:01:09]} 32. h4 {[%clk 0:00:27]}  Ne6 {[%clk 0:01:09]} 33. Qd6 {[%clk 0:00:25]}  Ra5 {[%clk 0:00:48]} 34. h5 {[%clk 0:00:22]}  gxh5 {[%clk 0:00:47]} 35. Re1 {[%clk 0:00:22]}  Qb5 {[%clk 0:00:42]} 36. Rxe6 {[%clk 0:00:21]}  fxe6 {[%clk 0:00:30]} 37. Qxe6+ {[%clk 0:00:22]}  Kh7 {[%clk 0:00:30]} 38. Qxc8 {[%clk 0:00:19]}  Qxc5+ {[%clk 0:00:30]} 39. Kh1 {[%clk 0:00:20]}  Qxc3 {[%clk 0:00:29]} 40. Rd1 {[%clk 0:00:17]}  Rxa3 {[%clk 0:00:24]} 41. Nxc6 {[%clk 0:00:17]}  Qc2 {[%clk 0:00:22]} 42. Rxd5 {[%clk 0:00:07]}  Qc1+ {[%clk 0:00:18]} 43. Kh2 {[%clk 0:00:08]}  Qf4+ {[%clk 0:00:19]} 44. Kh3 {[%clk 0:00:08]}  Rxf3+ {[%clk 0:00:17]} 45. gxf3 {[%clk 0:00:09]}  Qxf3+ {[%clk 0:00:18]} 46. Kh2 {[%clk 0:00:06]}  Qf2+ {[%clk 0:00:18]} 47. Kh1 {[%clk 0:00:07]}  Qf1+ {[%clk 0:00:18]} 48. Kh2 {[%clk 0:00:08]}  Qf2+ {[%clk 0:00:19]} 49. Kh3 {[%clk 0:00:08]}  Qf3+ {[%clk 0:00:18]} 50. Kh4 {[%clk 0:00:08]}  Qe4+ {[%clk 0:00:15]} 51. Kg3 {[%clk 0:00:07]}  Qxd5 {[%clk 0:00:15]} 52. Qc7 {[%clk 0:00:04]}  Qg5+ {[%clk 0:00:14]} 53. Kf2 {[%clk 0:00:05]}  Qf6+ {[%clk 0:00:13]} 54. Kg1 {[%clk 0:00:05]}  h4 {[%clk 0:00:14]} 55. Ne5 {[%clk 0:00:04]}  Qg5+ {[%clk 0:00:14]} 56. Kf1 {[%clk 0:00:05]}  Qf4+ {[%clk 0:00:13]} 57. Kg1 {[%clk 0:00:05]}  Qg3+ {[%clk 0:00:13]} 58. Kf1 {[%clk 0:00:06]}  h3 {[%clk 0:00:14]} 59. Qc2+ {[%clk 0:00:05]}  Kh6 {[%clk 0:00:08]} 60. Nf7+ {[%clk 0:00:04]}  Kh5 {[%clk 0:00:07]} 61. Qh7+ {[%clk 0:00:05]}  Kg4 {[%clk 0:00:08]} 62. Qg6+ {[%clk 0:00:05]}  Kf3 {[%clk 0:00:04]} 63. Qh5+ {[%clk 0:00:06]}  Kf4 {[%clk 0:00:03]} 64. Qe5+ {[%clk 0:00:05]}  Kf3 {[%clk 0:00:04]} 65. Qd5+ {[%clk 0:00:05]}  Kf4 {[%clk 0:00:04]} 66. Qd4+ {[%clk 0:00:05]}  Kf3 {[%clk 0:00:04]} 67. Ne5+ {[%clk 0:00:06]}  Qxe5 {[%clk 0:00:03]} 68. Qxe5 {[%clk 0:00:07]}  h2 {[%clk 0:00:03]} 69. Qxh2 {[%clk 0:00:07]} 1-0


[Site "https://www.chess.com"]

[Event "Titled Tuesday Blitz November 15 Early 2022"]
[White "Yaran, Siar"]
[Black "Lauridsen, Jesper Morch"]
[WhiteFideId "6323006"]
[BlackFideId "1401890"]
[WhiteElo "2191"]
[BlackElo "2222"]
[Result "1-0"]
[Round "01"]
[TimeControl "180+1"]
[Date "2022.11.16"]
[WhiteClock "0:01:00"]
[BlackClock "0:00:35"]

1. e4 {[%clk 0:03:00]}  c5 {[%clk 0:02:59]} 2. Nf3 {[%clk 0:03:00]}  e6 {[%clk 0:03:00]} 3. Nc3 {[%clk 0:03:00]}  Nc6 {[%clk 0:02:59]} 4. d4 {[%clk 0:03:00]}  cxd4 {[%clk 0:02:59]} 5. Nxd4 {[%clk 0:03:01]}  Qc7 {[%clk 0:02:59]} 6. a3 {[%clk 0:03:01]}  a6 {[%clk 0:02:57]} 7. Be2 {[%clk 0:03:01]}  Nf6 {[%clk 0:02:57]} 8. O-O {[%clk 0:03:01]}  d6 {[%clk 0:02:57]} 9. Be3 {[%clk 0:03:00]}  Be7 {[%clk 0:02:56]} 10. f4 {[%clk 0:02:58]}  O-O {[%clk 0:02:56]} 11. Qe1 {[%clk 0:02:58]}  Nxd4 {[%clk 0:02:55]} 12. Bxd4 {[%clk 0:02:59]}  b5 {[%clk 0:02:54]} 13. Qg3 {[%clk 0:02:57]}  Bb7 {[%clk 0:02:53]} 14. Bd3 {[%clk 0:02:57]}  g6 {[%clk 0:02:39]} 15. f5 {[%clk 0:01:56]}  e5 {[%clk 0:02:38]} 16. Be3 {[%clk 0:01:52]}  Kh8 {[%clk 0:02:27]} 17. Qh3 {[%clk 0:01:43]}  Nh5 {[%clk 0:02:03]} 18. Nd5 {[%clk 0:01:34]}  Bxd5 {[%clk 0:02:01]} 19. exd5 {[%clk 0:01:35]}  Nf4 {[%clk 0:01:36]} 20. Rxf4 {[%clk 0:01:18]}  exf4 {[%clk 0:01:26]} 21. Bd4+ {[%clk 0:01:16]}  f6 {[%clk 0:01:17]} 22. fxg6 {[%clk 0:01:16]}  Bd8 {[%clk 0:01:10]} 23. Rf1 {[%clk 0:01:11]}  Qg7 {[%clk 0:00:54]} 24. Rxf4 {[%clk 0:01:08]}  Ra7 {[%clk 0:00:41]} 25. Rh4 {[%clk 0:01:04]}  Qg8 {[%clk 0:00:35]} 26. Bxa7 {[%clk 0:01:00]} 1-0


[Site "https://www.chess.com"]